[Event "African Championship"]
[Site "followchess.com"]
[Date "2021.05.24"]
[Round "6"]
[White "Kayonde, Andrew"]
[Black "Okeke Issac"]
[Result "1-0"]
[ECO "B37"]
[WhiteElo "2399"]
[BlackElo "2097"]
[PlyCount "93"]
[EventDate "2021.??.??"]
[TimeControl "7200+30"]
[WhiteClock "0:59:32"]
[BlackClock "1:33:09"]

1. e4 {[%emt 0:31:08]} c5 {[%emt 0:29:43]} 2. Nf3 {[%emt 0:00:47]} g6 {[%emt 0:
00:12]} 3. d4 {[%emt 0:00:54]} cxd4 {[%emt 0:00:03]} 4. Nxd4 {[%emt 0:00:06]}
Bg7 {[%emt 0:00:06]} 5. c4 {[%emt 0:00:13]} Nc6 {[%emt 0:00:06]} 6. Nc2 {
[%emt 0:00:06]} Nf6 {[%emt 0:00:15]} 7. Nc3 {[%emt 0:00:09]} O-O {[%emt 0:00:
12]} 8. Be2 {[%emt 0:01:39]} a5 {[%emt 0:01:22]} 9. O-O {[%emt 0:00:16]} a4 {
[%emt 0:00:05]} 10. Na3 {[%emt 0:00:54]} d6 {[%emt 0:00:37]} 11. f3 {[%emt 0:
00:38]} Qa5 {[%emt 0:01:34]} 12. Kh1 {[%emt 0:00:42]} Be6 13. Bd2 {[%emt 0:00:
17]} Nd4 {[%emt 0:06:07]} 14. Bd3 {[%emt 0:00:45]} Nd7 {[%emt 0:01:01]} 15. Nd5
{[%emt 0:02:12]} Qd8 {[%emt 0:00:17]} 16. Bc3 {[%emt 0:00:37]} Nc6 {[%emt 0:02:
16]} 17. Bxg7 Kxg7 {[%emt 0:04:30]} 18. Nb5 {[%emt 0:02:53]} Nc5 {[%emt 0:01:
33]} 19. Rc1 {[%emt 0:00:36]} Bxd5 {[%emt 0:01:07]} 20. exd5 {[%emt 0:00:24]}
Nxd3 {[%emt 0:01:41]} 21. Qxd3 {[%emt 0:00:06]} Ne5 {[%emt 0:00:02]} 22. Qd4 {
[%emt 0:00:18]} Kg8 23. Rc3 {[%emt 0:00:36]} Nd7 {[%emt 0:02:10]} 24. Re1 {
[%emt 0:00:16]} Nc5 {[%emt 0:02:48]} 25. Rce3 {[%emt 0:00:48]} Re8 {[%emt 0:01:
14]} 26. f4 {[%emt 0:00:31]} e6 {[%emt 0:06:26]} 27. h3 {[%emt 0:06:05]} Rf8 {
[%emt 0:02:23]} 28. b4 {[%emt 0:04:44]} axb3 {[%emt 0:00:23]} 29. axb3 {
[%emt 0:00:05]} exd5 {[%emt 0:03:12]} 30. Qxd5 {[%emt 0:00:33]} Qf6 {[%emt 0:
06:04]} 31. Nxd6 {[%emt 0:02:18]} Ne6 {[%emt 0:06:05]} 32. Qxb7 {[%emt 0:04:49]
} Nxf4 {[%emt 0:05:37]} 33. Ne8 {[%emt 0:03:34]} Qd8 {[%emt 0:04:22]} 34. Qf3 {
[%emt 0:01:33]} Ne6 {[%emt 0:02:09]} 35. Nf6+ Kg7 {[%emt 0:00:39]} 36. Nd5 {
[%emt 0:00:32]} Rb8 {[%emt 0:02:47]} 37. Qe2 {[%emt 0:01:20]} h5 {[%emt 0:02:
41]} 38. Qb2+ Kh6 {[%emt 0:00:21]} 39. b4 {[%emt 0:01:13]} Qh4 {[%emt 0:01:07]}
40. Re4 {[%emt 0:00:00]} Qd8 {[%emt 0:00:00]} 41. b5 {[%emt 0:00:00]} Qd6 {
[%emt 0:00:00]} 42. Qd2+ Kg7 {[%emt 0:00:00]} 43. Qc3+ Kh6 {[%emt 0:00:00]} 44.
Qf6 {[%emt 0:00:00]} Qd8 {[%emt 0:00:00]} 45. Ne7 {[%emt 0:00:00]} Rb6 {
[%emt 0:00:00]} 46. Rxe6 Rxe6 {[%emt 0:00:00]} 47. Nf5+ {[%emt 0:00:00]} 1-0

[Event "African Championship"]
[Site "followchess.com"]
[Date "2021.05.24"]
[Round "6"]
[White "Masango, Spencer"]
[Black "Barrish, Daniel"]
[Result "0-1"]
[ECO "D00"]
[WhiteElo "2071"]
[BlackElo "2306"]
[PlyCount "58"]
[EventDate "2021.??.??"]
[TimeControl "7200+30"]
[WhiteClock "0:51:04"]
[BlackClock "0:42:09"]

1. d4 {[%emt 0:29:32]} d5 {[%emt 0:34:03]} 2. Bf4 {[%emt 0:00:18]} c5 {[%emt 0:
00:23]} 3. e3 {[%emt 0:00:11]} Nc6 {[%emt 0:00:27]} 4. c3 {[%emt 0:00:20]} Nf6
{[%emt 0:02:07]} 5. Nf3 {[%emt 0:00:32]} Qb6 {[%emt 0:00:26]} 6. Qc2 {[%emt 0:
00:21]} g6 {[%emt 0:06:17]} 7. Nbd2 {[%emt 0:01:05]} Bg7 {[%emt 0:01:29]} 8. h3
{[%emt 0:00:55]} O-O {[%emt 0:00:54]} 9. Be2 {[%emt 0:01:20]} Nd7 {[%emt 0:02:
12]} 10. Rd1 {[%emt 0:08:30]} Re8 {[%emt 0:09:43]} 11. O-O {[%emt 0:02:27]}
cxd4 {[%emt 0:00:35]} 12. exd4 {[%emt 0:01:57]} Nf6 {[%emt 0:00:20]} 13. Bd3 {
[%emt 0:09:06]} Bd7 {[%emt 0:01:03]} 14. Ne5 {[%emt 0:01:42]} Nxe5 {[%emt 0:04:
51]} 15. Bxe5 {[%emt 0:00:49]} Bb5 {[%emt 0:00:17]} 16. Bxb5 {[%emt 0:08:40]}
Qxb5 {[%emt 0:00:17]} 17. a4 {[%emt 0:04:10]} Qc6 {[%emt 0:02:14]} 18. Qb3 {
[%emt 0:01:30]} Rac8 {[%emt 0:03:36]} 19. a5 {[%emt 0:06:30]} Nd7 {[%emt 0:01:
44]} 20. Bg3 {[%emt 0:00:53]} b6 {[%emt 0:00:35]} 21. Ra1 {[%emt 0:04:54]} b5 {
[%emt 0:01:36]} 22. a6 {[%emt 0:02:17]} Nb6 {[%emt 0:00:06]} 23. Ra5 {[%emt 0:
00:42]} Nc4 {[%emt 0:00:03]} 24. Nxc4 {[%emt 0:01:56]} bxc4 {[%emt 0:00:24]}
25. Qb7 {[%emt 0:00:28]} e6 {[%emt 0:02:56]} 26. Rc5 {[%emt 0:01:04]} Qxb7 {
[%emt 0:01:22]} 27. axb7 {[%emt 0:00:04]} Rxc5 {[%emt 0:02:48]} 28. dxc5 {
[%emt 0:00:03]} e5 {[%emt 0:00:08]} 29. c6 {[%emt 0:00:05]} a5 0-1

[Event "African Championship"]
[Site "followchess.com"]
[Date "2021.05.24"]
[Round "6"]
[White "Mhango, Banele"]
[Black "Abdulraheem Abdulrahman Akint"]
[Result "1-0"]
[ECO "A04"]
[WhiteElo "2117"]
[BlackElo "2264"]
[PlyCount "149"]
[EventDate "2021.??.??"]
[TimeControl "7200+30"]
[WhiteClock "0:01:25"]
[BlackClock "0:19:38"]

1. Nf3 {[%emt 0:30:32]} c5 {[%emt 0:29:52]} 2. g3 {[%emt 0:00:10]} g6 {[%emt 0:
00:09]} 3. Bg2 {[%emt 0:00:17]} Bg7 {[%emt 0:00:09]} 4. O-O {[%emt 0:00:23]}
Nc6 {[%emt 0:00:41]} 5. c4 {[%emt 0:06:57]} d6 {[%emt 0:00:47]} 6. Nc3 {
[%emt 0:02:37]} e6 {[%emt 0:00:37]} 7. a3 {[%emt 0:05:27]} Nge7 {[%emt 0:00:24]
} 8. Rb1 {[%emt 0:00:44]} Rb8 {[%emt 0:01:21]} 9. b4 {[%emt 0:02:43]} b6 {
[%emt 0:01:15]} 10. bxc5 {[%emt 0:06:16]} dxc5 {[%emt 0:00:29]} 11. Bb2 {
[%emt 0:00:09]} O-O {[%emt 0:01:01]} 12. d3 {[%emt 0:00:03]} h6 {[%emt 0:02:25]
} 13. Nb5 {[%emt 0:03:59]} e5 {[%emt 0:05:35]} 14. Ne1 {[%emt 0:06:01]} Be6 {
[%emt 0:03:20]} 15. Nc3 {[%emt 0:11:56]} Qd7 {[%emt 0:00:46]} 16. Nc2 {[%emt 0:
01:51]} f5 {[%emt 0:03:46]} 17. Ne3 {[%emt 0:01:39]} f4 {[%emt 0:05:05]} 18.
Ned5 {[%emt 0:00:06]} Bh3 {[%emt 0:00:58]} 19. Qa4 {[%emt 0:09:29]} Bxg2 {
[%emt 0:02:36]} 20. Kxg2 {[%emt 0:02:01]} Nf5 {[%emt 0:08:18]} 21. f3 {[%emt 0:
01:54]} Rf7 {[%emt 0:01:57]} 22. Bc1 Rbf8 {[%emt 0:03:07]} 23. Ne4 {[%emt 0:04:
48]} Nfd4 {[%emt 0:09:30]} 24. Qd1 {[%emt 0:01:09]} h5 {[%emt 0:06:19]} 25. Bb2
{[%emt 0:09:32]} Qd8 {[%emt 0:01:25]} 26. Nf2 {[%emt 0:03:18]} g5 {[%emt 0:01:
08]} 27. g4 {[%emt 0:00:39]} hxg4 {[%emt 0:07:33]} 28. Nxg4 {[%emt 0:00:06]}
Qd6 {[%emt 0:01:16]} 29. Bc3 {[%emt 0:03:01]} Bh8 {[%emt 0:02:34]} 30. Be1 {
[%emt 0:00:13]} Rh7 {[%emt 0:00:56]} 31. Rh1 {[%emt 0:00:12]} Nf5 {[%emt 0:01:
46]} 32. Bf2 {[%emt 0:02:08]} Rff7 {[%emt 0:00:46]} 33. Qd2 {[%emt 0:01:38]}
Rh5 {[%emt 0:04:26]} 34. Rbg1 {[%emt 0:00:05]} Rfh7 {[%emt 0:00:43]} 35. Kf1 {
[%emt 0:01:21]} Rh3 {[%emt 0:00:59]} 36. Nc3 {[%emt 0:00:52]} Kf8 {[%emt 0:06:
03]} 37. Ne4 {[%emt 0:00:05]} Qd8 {[%emt 0:01:23]} 38. Rg2 {[%emt 0:03:29]}
Ncd4 {[%emt 0:04:23]} 39. Bxd4 {[%emt 0:03:25]} exd4 {[%emt 0:01:38]} 40. Rhg1
{[%emt 0:00:00]} Nh4 {[%emt 0:00:00]} 41. Rf2 {[%emt 0:00:00]} Bg7 {[%emt 0:00:
00]} 42. Qd1 {[%emt 0:00:00]} Nf5 {[%emt 0:00:00]} 43. Qa4 {[%emt 0:00:00]}
Ne3+ {[%emt 0:00:00]} 44. Ke1 {[%emt 0:00:00]} Bh8 {[%emt 0:00:00]} 45. Qc6 {
[%emt 0:00:00]} Rc7 {[%emt 0:00:00]} 46. Qg6 {[%emt 0:00:00]} Rg7 {[%emt 0:03:
03]} 47. Qe6 {[%emt 0:00:00]} b5 {[%emt 0:01:18]} 48. Nxe3 {[%emt 0:00:00]}
dxe3 {[%emt 0:08:22]} 49. Qxh3 {[%emt 0:00:00]} exf2+ {[%emt 0:00:32]} 50. Kxf2
{[%emt 0:00:00]} Qd4+ {[%emt 0:01:14]} 51. Kg2 {[%emt 0:00:00]} Kg8 {[%emt 0:
03:01]} 52. Qe6+ {[%emt 0:00:00]} Kf8 {[%emt 0:00:30]} 53. Qf5+ {[%emt 0:00:00]
} Rf7 {[%emt 0:00:30]} 54. Qc8+ {[%emt 0:00:00]} Ke7 {[%emt 0:00:31]} 55. cxb5
{[%emt 0:00:00]} Qe3 {[%emt 0:00:27]} 56. Qxh8 {[%emt 0:00:00]} Qxe2+ {[%emt 0:
00:34]} 57. Nf2 {[%emt 0:00:00]} g4 {[%emt 0:00:10]} 58. Qh4+ {[%emt 0:00:00]}
Kf8 {[%emt 0:00:01]} 59. fxg4 {[%emt 0:00:00]} Kg8 {[%emt 0:00:02]} 60. Qg5+ {
[%emt 0:00:00]} Kh8 {[%emt 0:00:28]} 61. Qh6+ {[%emt 0:00:56]} Kg8 {[%emt 0:00:
08]} 62. Qg6+ {[%emt 0:00:04]} Rg7 {[%emt 0:00:41]} 63. Qf5 {[%emt 0:00:08]}
Qe3 {[%emt 0:01:16]} 64. Qe4 {[%emt 0:00:26]} Qd2 {[%emt 0:00:34]} 65. h3 {
[%emt 0:01:08]} Rf7 {[%emt 0:00:53]} 66. Re1 {[%emt 0:00:13]} Kg7 {[%emt 0:00:
24]} 67. Qe5+ {[%emt 0:00:05]} Kh7 {[%emt 0:00:16]} 68. Qh5+ {[%emt 0:00:22]}
Kg7 {[%emt 0:00:04]} 69. Qe5+ {[%emt 0:00:39]} Kh7 {[%emt 0:00:06]} 70. g5 {
[%emt 0:00:44]} Kg6 {[%emt 0:01:35]} 71. h4 {[%emt 0:00:32]} Rh7 {[%emt 0:00:
52]} 72. Qe8+ {[%emt 0:00:11]} Rf7 {[%emt 0:00:22]} 73. Re6+ {[%emt 0:00:04]}
Kg7 {[%emt 0:00:07]} 74. h5 {[%emt 0:01:02]} f3+ {[%emt 0:00:08]} 75. Kh3 {
[%emt 0:00:03]} 1-0

[Event "African Championship"]
[Site "followchess.com"]
[Date "2021.05.24"]
[Round "6"]
[White "Mphungu, Gerrard"]
[Black "Magana, Ben"]
[Result "1-0"]
[ECO "B01"]
[WhiteElo "2096"]
[BlackElo "2031"]
[PlyCount "22"]
[EventDate "2021.??.??"]
[TimeControl "7200+30"]

1. e4 d5 2. exd5 Nf6 3. d4 Nxd5 4. Bc4 Nf6 5. Nf3 e6 6. O-O Be7 7. Bf4 O-O 8.
c3 b6 9. Nbd2 Bb7 10. Qc2 Nbd7 11. Rfe1 c5 1-0

[Event "African Championship"]
[Site "followchess.com"]
[Date "2021.05.24"]
[Round "6"]
[White "Mwale, Joseph"]
[Black "Bellahcene, Bilel"]
[Result "1-0"]
[ECO "A05"]
[WhiteElo "2148"]
[BlackElo "2508"]
[PlyCount "121"]
[EventDate "2021.??.??"]
[TimeControl "7200+30"]
[WhiteClock "0:00:48"]
[BlackClock "0:01:40"]

1. Nf3 {[%emt 0:29:31]} Nf6 {[%emt 0:31:51]} 2. g3 {[%emt 0:00:11]} d5 {
[%emt 0:00:06]} 3. Bg2 {[%emt 0:00:06]} e6 {[%emt 0:00:06]} 4. d4 {[%emt 0:00:
10]} b5 {[%emt 0:00:05]} 5. a4 {[%emt 0:00:18]} b4 {[%emt 0:00:03]} 6. c4 {
[%emt 0:00:10]} bxc3 {[%emt 0:00:04]} 7. bxc3 {[%emt 0:00:05]} Ba6 {[%emt 0:01:
28]} 8. O-O {[%emt 0:00:08]} Nbd7 {[%emt 0:00:32]} 9. Nbd2 {[%emt 0:01:08]} c5
{[%emt 0:01:03]} 10. Re1 {[%emt 0:00:19]} Rc8 {[%emt 0:08:39]} 11. e4 {[%emt 0:
07:33]} cxd4 {[%emt 0:11:20]} 12. Nxd4 {[%emt 0:05:35]} Nc5 {[%emt 0:01:21]}
13. exd5 {[%emt 0:02:03]} Nxd5 {[%emt 0:00:14]} 14. Qh5 {[%emt 0:08:04]} Nf6 {
[%emt 0:04:20]} 15. Qh3 {[%emt 0:03:05]} Bd6 {[%emt 0:05:13]} 16. Bc6+ {
[%emt 0:05:58]} Rxc6 {[%emt 0:19:04]} 17. Nxc6 {[%emt 0:01:34]} Qd7 {[%emt 0:
00:03]} 18. Nb4 {[%emt 0:06:01]} Bb7 {[%emt 0:00:42]} 19. Nc4 {[%emt 0:00:35]}
Be7 {[%emt 0:00:47]} 20. Bf4 {[%emt 0:08:20]} Ba8 {[%emt 0:02:59]} 21. Ne5 {
[%emt 0:03:08]} Qc8 {[%emt 0:04:00]} 22. Qf1 {[%emt 0:03:11]} a6 {[%emt 0:10:
14]} 23. Nc4 {[%emt 0:10:52]} Qb7 {[%emt 0:02:11]} 24. f3 {[%emt 0:00:15]} O-O
{[%emt 0:00:02]} 25. Na5 {[%emt 0:03:18]} Qc8 {[%emt 0:02:56]} 26. Nc4 {
[%emt 0:02:35]} Ncd7 {[%emt 0:04:08]} 27. Be3 {[%emt 0:01:41]} a5 {[%emt 0:04:
59]} 28. Nc2 {[%emt 0:00:56]} h5 {[%emt 0:04:54]} 29. Nd4 {[%emt 0:02:22]} Nd5
{[%emt 0:02:38]} 30. Bf2 {[%emt 0:01:16]} h4 {[%emt 0:01:21]} 31. Rac1 {
[%emt 0:02:40]} hxg3 {[%emt 0:00:41]} 32. hxg3 {[%emt 0:00:05]} Nc5 {[%emt 0:
01:11]} 33. Nxa5 {[%emt 0:00:52]} Qc7 {[%emt 0:01:49]} 34. Nc4 {[%emt 0:00:37]}
Nxa4 {[%emt 0:00:33]} 35. Ne5 {[%emt 0:00:44]} Bg5 {[%emt 0:02:03]} 36. Rc2 {
[%emt 0:00:49]} Be3 {[%emt 0:01:16]} 37. Bxe3 {[%emt 0:07:58]} Qxe5 {[%emt 0:
00:03]} 38. Bf4 {[%emt 0:01:06]} Qf6 {[%emt 0:02:03]} 39. Be5 {[%emt 0:00:15]}
Qg6 {[%emt 0:00:42]} 40. Re4 {[%emt 0:00:00]} f5 {[%emt 0:00:00]} 41. Re1 {
[%emt 0:00:00]} Naxc3 {[%emt 0:00:00]} 42. Qc4 {[%emt 0:00:00]} f4 {[%emt 0:00:
00]} 43. Rxc3 {[%emt 0:00:00]} Qxg3+ {[%emt 0:00:00]} 44. Kf1 {[%emt 0:00:00]}
Qh3+ {[%emt 0:00:00]} 45. Ke2 {[%emt 0:00:00]} Nxc3+ {[%emt 0:00:00]} 46. Qxc3
{[%emt 0:00:00]} Qg2+ {[%emt 0:00:00]} 47. Kd1 {[%emt 0:00:00]} Bd5 {[%emt 0:
00:00]} 48. Re2 {[%emt 0:00:00]} Qg1+ {[%emt 0:00:00]} 49. Kd2 {[%emt 0:03:24]}
Rd8 {[%emt 0:01:01]} 50. Qc1 {[%emt 0:08:06]} Qg5 {[%emt 0:00:41]} 51. Ke1 {
[%emt 0:01:19]} Qh4+ {[%emt 0:03:09]} 52. Rf2 {[%emt 0:00:28]} Ra8 {[%emt 0:01:
15]} 53. Ne2 {[%emt 0:03:40]} Qh1+ {[%emt 0:00:51]} 54. Kd2 {[%emt 0:01:18]}
Qh5 {[%emt 0:01:06]} 55. Bb2 {[%emt 0:00:43]} Bxf3 {[%emt 0:00:54]} 56. Nxf4 {
[%emt 0:01:44]} Qg4 {[%emt 0:00:41]} 57. Qc7 {[%emt 0:00:48]} Bd5 {[%emt 0:00:
36]} 58. Nxd5 {[%emt 0:00:25]} Qg5+ {[%emt 0:00:23]} 59. Ke1 {[%emt 0:00:44]}
Qg1+ {[%emt 0:00:38]} 60. Rf1 {[%emt 0:00:09]} Qg2 {[%emt 0:00:13]} 61. Qf7+ {
[%emt 0:00:28]} 1-0

[Event "African Championship"]
[Site "followchess.com"]
[Date "2021.05.24"]
[Round "6"]
[White "Nassr, Ali"]
[Black "Ajibola, Olanrewaju"]
[Result "1-0"]
[ECO "A46"]
[WhiteElo "2232"]
[BlackElo "2337"]
[PlyCount "87"]
[EventDate "2021.??.??"]
[TimeControl "7200+30"]
[WhiteClock "0:30:46"]
[BlackClock "0:45:21"]

1. d4 {[%emt 0:29:49]} Nf6 {[%emt 0:29:36]} 2. Nf3 {[%emt 0:00:21]} e6 {
[%emt 0:00:44]} 3. e3 {[%emt 0:00:39]} b6 {[%emt 0:00:53]} 4. Bd3 {[%emt 0:00:
23]} Bb7 {[%emt 0:00:56]} 5. Nbd2 {[%emt 0:00:14]} c5 {[%emt 0:02:07]} 6. O-O {
[%emt 0:01:38]} Be7 {[%emt 0:03:20]} 7. c3 {[%emt 0:07:06]} Nc6 {[%emt 0:05:28]
} 8. a3 {[%emt 0:02:17]} d5 9. Ne5 {[%emt 0:05:06]} O-O {[%emt 0:10:32]} 10. f4
{[%emt 0:00:43]} cxd4 {[%emt 0:13:50]} 11. exd4 {[%emt 0:00:17]} Ne4 {[%emt 0:
00:23]} 12. Nxe4 {[%emt 0:02:06]} Nxe5 {[%emt 0:00:21]} 13. Nf6+ Bxf6 {[%emt 0:
06:05]} 14. fxe5 {[%emt 0:01:20]} Be7 {[%emt 0:00:37]} 15. Qg4 {[%emt 0:08:01]}
f5 {[%emt 0:06:58]} 16. exf6 {[%emt 0:00:58]} Rxf6 {[%emt 0:00:08]} 17. Rxf6 {
[%emt 0:00:19]} Bxf6 {[%emt 0:00:05]} 18. Qxe6+ Kh8 {[%emt 0:00:05]} 19. Qh3 {
[%emt 0:01:12]} Qg8 {[%emt 0:00:17]} 20. Bd2 {[%emt 0:00:48]} Re8 {[%emt 0:02:
56]} 21. Bg6 {[%emt 0:02:04]} Re2 {[%emt 0:02:11]} 22. Re1 {[%emt 0:01:02]}
Rxe1+ 23. Bxe1 {[%emt 0:00:10]} Bg5 {[%emt 0:08:09]} 24. b3 {[%emt 0:08:10]}
Bc8 {[%emt 0:02:25]} 25. Qh5 {[%emt 0:06:13]} Be3+ 26. Bf2 {[%emt 0:14:52]}
Bxf2+ {[%emt 0:09:43]} 27. Kxf2 {[%emt 0:00:10]} Be6 {[%emt 0:00:06]} 28. Kg1 {
[%emt 0:15:47]} h6 {[%emt 0:08:14]} 29. Qe5 {[%emt 0:00:31]} Qc8 {[%emt 0:02:
56]} 30. h3 {[%emt 0:01:28]} Bg8 {[%emt 0:02:16]} 31. Qe3 {[%emt 0:00:52]} Qc6
{[%emt 0:01:16]} 32. Bc2 {[%emt 0:06:40]} Qd6 {[%emt 0:02:19]} 33. a4 {[%emt 0:
00:32]} Qc6 {[%emt 0:00:52]} 34. g4 {[%emt 0:00:11]} Bh7 {[%emt 0:03:29]} 35.
Bxh7 {[%emt 0:00:28]} Kxh7 {[%emt 0:00:04]} 36. Qd3+ {[%emt 0:00:22]} Kh8 {
[%emt 0:00:06]} 37. c4 {[%emt 0:00:14]} dxc4 {[%emt 0:00:53]} 38. Qxc4 {
[%emt 0:01:33]} Qf3 {[%emt 0:00:31]} 39. Qc8+ {[%emt 0:00:21]} Kh7 {[%emt 0:02:
16]} 40. Qf5+ {[%emt 0:00:00]} Qxf5 {[%emt 0:00:00]} 41. gxf5 {[%emt 0:00:00]}
a5 {[%emt 0:00:00]} 42. Kf2 {[%emt 0:00:00]} g6 {[%emt 0:00:00]} 43. d5 {
[%emt 0:00:00]} Kg7 {[%emt 0:00:00]} 44. d6 {[%emt 0:00:00]} 1-0

[Event "African Championship"]
[Site "followchess.com"]
[Date "2021.05.24"]
[Round "6"]
[White "Oragwu, Chukwunonso"]
[Black "Hesham, Abdelrahman"]
[Result "0-1"]
[ECO "E04"]
[WhiteElo "2241"]
[BlackElo "2400"]
[PlyCount "96"]
[EventDate "2021.??.??"]
[TimeControl "7200+30"]
[WhiteClock "0:05:32"]
[BlackClock "0:03:54"]

1. Nf3 {[%emt 0:30:30]} d5 {[%emt 0:32:54]} 2. d4 {[%emt 0:00:24]} Nf6 {
[%emt 0:00:12]} 3. c4 {[%emt 0:00:08]} e6 {[%emt 0:00:11]} 4. g3 {[%emt 0:00:
11]} dxc4 {[%emt 0:00:21]} 5. Bg2 {[%emt 0:00:23]} a6 {[%emt 0:00:31]} 6. O-O {
[%emt 0:00:56]} Nc6 {[%emt 0:00:23]} 7. Bg5 {[%emt 0:02:15]} Be7 {[%emt 0:03:
01]} 8. e3 Rb8 {[%emt 0:18:19]} 9. Nfd2 {[%emt 0:03:20]} e5 {[%emt 0:02:25]}
10. Bxf6 {[%emt 0:05:58]} Bxf6 {[%emt 0:00:18]} 11. d5 {[%emt 0:00:27]} Ne7 {
[%emt 0:00:44]} 12. Nxc4 {[%emt 0:05:08]} Nf5 {[%emt 0:08:37]} 13. Nbd2 {
[%emt 0:07:17]} Nd6 {[%emt 0:00:58]} 14. Rc1 {[%emt 0:02:42]} O-O {[%emt 0:11:
10]} 15. e4 {[%emt 0:09:39]} g6 {[%emt 0:03:20]} 16. a4 {[%emt 0:03:59]} Bg7 {
[%emt 0:03:12]} 17. Qb3 {[%emt 0:08:36]} Re8 {[%emt 0:10:42]} 18. Rc2 {[%emt 0:
06:23]} f5 {[%emt 0:07:07]} 19. Nxd6 {[%emt 0:04:48]} cxd6 {[%emt 0:00:49]} 20.
Nc4 {[%emt 0:04:31]} fxe4 {[%emt 0:02:52]} 21. Qb4 {[%emt 0:02:01]} Bf5 {
[%emt 0:02:28]} 22. Rc3 {[%emt 0:01:04]} b5 {[%emt 0:03:53]} 23. Na5 {[%emt 0:
00:25]} bxa4 {[%emt 0:00:26]} 24. Qxa4 {[%emt 0:00:31]} Rxb2 {[%emt 0:02:37]}
25. Nc4 {[%emt 0:04:28]} Rb5 {[%emt 0:01:12]} 26. Rd1 {[%emt 0:03:52]} Bc8 {
[%emt 0:09:41]} 27. Bxe4 {[%emt 0:00:22]} Rf8 {[%emt 0:02:36]} 28. Qa3 {
[%emt 0:03:37]} Rc5 {[%emt 0:00:57]} 29. Rdc1 {[%emt 0:00:44]} Qf6 {[%emt 0:01:
03]} 30. R1c2 {[%emt 0:00:34]} Bb7 {[%emt 0:01:00]} 31. Rf3 {[%emt 0:03:19]}
Qe7 {[%emt 0:00:34]} 32. Rfc3 {[%emt 0:04:21]} Rfc8 {[%emt 0:00:42]} 33. Na5 {
[%emt 0:00:52]} Rxc3 {[%emt 0:00:26]} 34. Rxc3 {[%emt 0:00:06]} Rxc3 {[%emt 0:
00:16]} 35. Qxc3 {[%emt 0:00:05]} Bf8 {[%emt 0:00:20]} 36. Qc4 {[%emt 0:02:06]}
Qf7 {[%emt 0:01:04]} 37. Qb3 {[%emt 0:00:33]} Bc8 {[%emt 0:00:17]} 38. Qb6 {
[%emt 0:00:38]} Bf5 {[%emt 0:00:38]} 39. Bg2 {[%emt 0:01:49]} Bd3 {[%emt 0:00:
24]} 40. Nc6 {[%emt 0:00:00]} e4 {[%emt 0:00:00]} 41. Qa5 {[%emt 0:00:00]} Qf5
{[%emt 0:00:00]} 42. h4 {[%emt 0:00:00]} Qg4 {[%emt 0:00:00]} 43. Qd8 {[%emt 0:
00:17]} e3 {[%emt 0:00:00]} 44. Qe8 {[%emt 0:05:24]} Qd1+ {[%emt 0:00:00]} 45.
Kh2 {[%emt 0:00:37]} exf2 {[%emt 0:00:00]} 46. Ne7+ {[%emt 0:04:20]} Kg7 {
[%emt 0:00:00]} 47. Qd7 {[%emt 0:00:21]} Qg1+ {[%emt 0:00:00]} 48. Kh3 {
[%emt 0:00:05]} Qxg2+ {[%emt 0:00:00]} 0-1

[Event "African Championship"]
[Site "followchess.com"]
[Date "2021.05.24"]
[Round "6"]
[White "Silva, David"]
[Black "Osunfuyi, Abimbola"]
[Result "1/2-1/2"]
[ECO "B45"]
[WhiteElo "2296"]
[BlackElo "2246"]
[PlyCount "65"]
[EventDate "2021.??.??"]
[TimeControl "7200+30"]
[WhiteClock "0:02:15"]
[BlackClock "0:03:01"]

1. e4 {[%emt 0:30:27]} c5 {[%emt 0:34:08]} 2. Nf3 {[%emt 0:00:10]} Nc6 {
[%emt 0:00:21]} 3. d4 {[%emt 0:00:09]} cxd4 {[%emt 0:00:29]} 4. Nxd4 {[%emt 0:
00:03]} Nf6 {[%emt 0:00:11]} 5. Nc3 {[%emt 0:00:04]} e6 {[%emt 0:00:37]} 6.
Ndb5 {[%emt 0:02:45]} Bb4 {[%emt 0:02:03]} 7. a3 {[%emt 0:03:26]} Bxc3+ {
[%emt 0:00:37]} 8. Nxc3 {[%emt 0:00:02]} d5 {[%emt 0:01:28]} 9. exd5 {[%emt 0:
06:17]} exd5 {[%emt 0:00:20]} 10. Bd3 {[%emt 0:00:53]} O-O {[%emt 0:01:43]} 11.
O-O {[%emt 0:00:33]} d4 {[%emt 0:00:11]} 12. Ne4 {[%emt 0:00:34]} Bf5 {[%emt 0:
00:13]} 13. Bg5 {[%emt 0:02:01]} Bxe4 {[%emt 0:06:21]} 14. Bxe4 {[%emt 0:00:59]
} Qd6 {[%emt 0:01:48]} 15. Bxf6 {[%emt 0:11:10]} Qxf6 {[%emt 0:01:34]} 16. Qh5
{[%emt 0:00:20]} g6 {[%emt 0:05:40]} 17. Qb5 {[%emt 0:01:33]} Rab8 {[%emt 0:00:
35]} 18. Rad1 {[%emt 0:00:45]} Rfe8 {[%emt 0:02:03]} 19. f3 {[%emt 0:09:43]}
Re6 {[%emt 0:10:55]} 20. Rf2 {[%emt 0:04:15]} Re5 {[%emt 0:28:03]} 21. Qc4 {
[%emt 0:05:02]} Rd8 {[%emt 0:00:42]} 22. b4 {[%emt 0:05:48]} Re6 {[%emt 0:00:
17]} 23. Rfd2 {[%emt 0:01:29]} Red6 {[%emt 0:02:52]} 24. Qb5 {[%emt 0:08:54]}
R8d7 {[%emt 0:02:32]} 25. Re2 {[%emt 0:07:12]} Re7 {[%emt 0:02:29]} 26. Red2 {
[%emt 0:09:09]} Qf4 {[%emt 0:04:04]} 27. Qf1 {[%emt 0:09:56]} Qe3+ {[%emt 0:02:
25]} 28. Qf2 {[%emt 0:00:21]} Qxa3 {[%emt 0:00:20]} 29. b5 {[%emt 0:00:19]} Ne5
{[%emt 0:01:59]} 30. Rxd4 {[%emt 0:01:23]} Rxd4 {[%emt 0:14:33]} 31. Qxd4 {
[%emt 0:00:18]} Qa5 {[%emt 0:01:05]} 32. Qc5 {[%emt 0:02:19]} Rd7 {[%emt 0:01:
07]} 33. Rf1 {[%emt 0:05:10]} 1/2-1/2